fUST/lending_fUST_20250726
["ID","MTS","AMOUNT","RATE_DAILY","PERIOD"]
[375105932,1753529449256,-591.69,0.00022739,2]
[375105933,1753529449266,-460.0,0.00022739,2]
[375105935,1753529449276,-1115.3,0.00022739,2]
[375105937,1753529449285,-842.29,0.00022739,2]
[375105939,1753529449296,-1177.67,0.00022739,2]
[375105941,1753529449306,-460.0,0.00022739,2]
[375105943,1753529449315,-460.0,0.00022739,2]
[375105945,1753529449324,-4000.63,0.00022739,2]
[375105947,1753529449335,-460.0,0.00022739,2]
[375105949,1753529449345,-460.0,0.00022739,2]
[375105951,1753529449355,-1081.06,0.00022739,2]
[375105953,1753529449365,-460.0,0.00022739,2]
[375105955,1753529449376,-460.0,0.00022739,2]
[375105957,1753529449386,-1328.36,0.00022739,2]
[375105959,1753529449396,-460.0,0.00022739,2]
[375105961,1753529449405,-521.34454124,0.00022739,2]
[375105963,1753529449415,-726.9,0.00022739,2]
[375105965,1753529449425,-507.67,0.00022739,2]
[375105967,1753529449435,-460.0,0.00022739,2]
[375105969,1753529449445,-2765.05,0.00022739,2]
[375105971,1753529449455,-626.15,0.00022739,2]
[375105973,1753529449466,-749.5,0.00022739,2]
[375105975,1753529449476,-360.0,0.00022797,2]
[375105977,1753529449487,-360.0,0.00022798,2]
[375105979,1753529449497,-360.0,0.00022799,2]
[375105981,1753529449507,-35254.36,0.000228,2]
[375105983,1753529449517,-1000.0,0.000228,2]
[375105985,1753529449529,-171.9,0.00022882,5]
[375105986,1753529449538,-1276.03055214,0.00022895,2]
[375105988,1753529449548,-181079.596322,0.000229,7]
[375105992,1753529449574,-160.0,0.00020067,2]
[375105994,1753529449583,-74153.5404739,0.000229,7]
[375105996,1753529449595,-1168.12804638,0.000229,7]
[375105998,1753529449607,-287.70733921,0.000229,7]
[375106000,1753529449619,-7902.18597065,0.000229,7]
[375106002,1753529449631,-4164.42490134,0.000229,7]
[375106005,1753529449643,-9284.70257285,0.000229,7]
[375106007,1753529449656,-14558.54786874,0.000229,7]
[375106015,1753529449727,-460.0,0.00019178,2]
[375106016,1753529449737,-2612.59983121,0.000229,7]
[375106019,1753529449749,-62387.52860949,0.000229,7]
[375106021,1753529449764,-5621.38105114,0.000229,7]
[375106023,1753529449777,-16950.04608926,0.000229,7]
[375106025,1753529449789,-770.67,0.000229,7]
[375106028,1753529449806,-284.37037879,0.000229,7]
[375106030,1753529449817,-19.89102131,0.00022945,2]
[375106032,1753529449830,-340.10897869,0.00022945,2]
[375106034,1753529449841,-375.56736541,0.0002298,2]
[375106044,1753529449938,-727.48479184,0.00019626,2]
[375106047,1753529449948,-177.76111169,0.0002032,2]
[375106049,1753529449961,-310.79506735,0.0002032,2]
[375106051,1753529449975,-238.92861277,0.0002032,2]
[375106053,1753529449988,-460.0,0.00022191,2]
[375106055,1753529449999,-435.77261416,0.00022465,2]
[375106071,1753529450180,-262.96198933,0.00019178,2]
[375106073,1753529450191,-727.48479181,0.00021015,2]
[375106075,1753529450203,-24.22738584,0.00022465,2]
[375106077,1753529450213,-187.52942687,0.00022739,2]
[375106078,1753529450223,-3489.63822189,0.0002298,2]
[375106085,1753529450287,-2638.80689332,0.0002298,2]
[375106087,1753529450299,-360.0,0.0002299,2]
[375106089,1753529450309,-660.0,0.00022996,2]
[375106092,1753529450319,-200.0,0.00023,2]
[375106093,1753529450330,-469.56378725,0.00023,15]
[375106096,1753529450340,-160.0,0.00023,2]
[375106097,1753529450349,-460.0,0.00023013,2]
[375106100,1753529450360,-460.0,0.00023013,2]
[375106102,1753529450369,-460.0,0.00023013,2]
[375106104,1753529450378,-74.37130485,0.00023013,2]
[375106106,1753529450391,-966.46869515,0.00023013,2]
[375106108,1753529450400,-920.08,0.00023013,2]
[375106110,1753529450410,-1072.59,0.00023013,2]
[375106112,1753529450420,-1739.7,0.00023013,2]
[375106114,1753529450429,-460.0,0.00023013,2]
[375106116,1753529450439,-460.0,0.00023013,2]
[375106118,1753529450448,-758.04,0.00023013,2]
[375106120,1753529450458,-507.11,0.00023013,2]
[375106122,1753529450467,-460.0,0.00023013,2]
[375106124,1753529450477,-1371.26,0.00023013,2]
[375106126,1753529450487,-1276.4,0.00023013,2]
[375106128,1753529450497,-591.69,0.00023013,2]
[375106130,1753529450506,-460.0,0.00023013,2]
[375106132,1753529450515,-1115.3,0.00023013,2]
[375106134,1753529450526,-842.29,0.00023013,2]
[375106136,1753529450535,-1177.67,0.00023013,2]
[375106138,1753529450545,-460.0,0.00023013,2]
[375106140,1753529450554,-460.0,0.00023013,2]
[375106142,1753529450563,-4000.63,0.00023013,2]
[375106144,1753529450573,-262.14615335,0.00023013,2]
[375106146,1753529450582,-460.0,0.00023013,2]
[375106148,1753529450592,-1081.06,0.00023013,2]
[375106150,1753529450601,-460.0,0.00023013,2]
[375106152,1753529450611,-460.0,0.00023013,2]
[375106154,1753529450620,-1328.36,0.00023013,2]
[375106156,1753529450630,-460.0,0.00023013,2]
[375106158,1753529450639,-726.9,0.00023013,2]
[375106160,1753529450649,-507.67,0.00023013,2]
[375106162,1753529450658,-460.0,0.00023013,2]
[375106164,1753529450668,-2765.05,0.00023013,2]
[375106166,1753529450677,-626.15,0.00023013,2]
[375106168,1753529450687,-749.5,0.00023013,2]
[375106170,1753529450697,-301.62993289,0.00023014,2]
[375106172,1753529450706,-360.0,0.00023032,2]
[375106174,1753529450716,-360.0,0.00023056,2]
[375106176,1753529450725,-566.46,0.00023128,2]
[375106178,1753529450735,-360.0,0.00023184,2]
[375106180,1753529450744,-151.0,0.000232,6]
[375106182,1753529450753,-566.46,0.00023228,7]
[375106184,1753529450762,-360.0,0.00023238,2]
[375106186,1753529450772,-171.9,0.00023285,5]
[375106188,1753529450782,-460.0,0.00023287,2]
[375106190,1753529450791,-183.86776806,0.00023287,2]
[375106191,1753529450800,-460.0,0.00023287,2]
[375106193,1753529450810,-581.56350265,0.00023287,2]
[375106196,1753529450822,-459.27649735,0.00023287,2]
[375106198,1753529450831,-920.08,0.00023287,2]
[375106200,1753529450842,-1072.59,0.00023287,2]
[375106202,1753529450851,-1739.7,0.00023287,2]
[375106204,1753529450861,-460.0,0.00023287,2]
[375106205,1753529450870,-460.0,0.00023287,2]
[375106207,1753529450881,-758.04,0.00023287,2]
[375106209,1753529450891,-507.11,0.00023287,2]
[375106212,1753529450900,-16.5897877,0.00023287,2]
[375106214,1753529450911,-443.4102123,0.00023287,2]
[375106216,1753529450920,-633.33817485,0.00023287,2]
[375109278,1753529570319,168.252584,0.00013699,2]
[375109349,1753530632318,-162.2740624,0.00018174,2]
[375109351,1753530632328,-1615.49413254,0.000188,2]
[375109357,1753530632370,-1156.50586746,0.000188,2]
[375109359,1753530632379,-314.21,0.00019168,3]
[375109361,1753530632389,-157.11,0.00019168,3]
[375109363,1753530632398,-257.48413254,0.00019168,3]
[375109365,1753530632409,-213.86586746,0.00019168,3]
[375109367,1753530632419,-225.08456515,0.00019173,2]
[375109369,1753530632428,-300.0,0.00019176,2]
[375109371,1753530632437,-106.06962739,0.00019177,2]
[375109373,1753530632449,-282.65135441,0.00019177,2]
[375109376,1753530632459,-500.0,0.00019177,2]
[375109378,1753530632468,-500.0,0.00019177,2]
[375109380,1753530632478,-233.03814112,0.00019177,2]
[375109382,1753530632487,-460.0,0.00019178,2]
[375109384,1753530632497,-460.0,0.00019178,2]
[375109386,1753530632507,-460.0,0.00019178,2]
[375109388,1753530632516,-471.25205502,0.00019178,2]
[375109390,1753530632525,-465.18161813,0.00019178,2]
[375109392,1753530632535,-460.0,0.00019178,2]
[375109394,1753530632544,-460.0,0.00019178,2]
[375109396,1753530632554,-355.33495529,0.00019178,2]
[375109398,1753530632564,-460.0,0.00019178,2]
[375109400,1753530632573,-460.0,0.00019178,2]
[375109402,1753530632583,-460.0,0.00019178,2]
[375109404,1753530632592,-468.05659869,0.00019178,2]
[375109406,1753530632602,-460.0,0.00019178,2]
[375109408,1753530632611,-460.0,0.00019178,2]
[375109410,1753530632621,-460.0,0.00019178,2]
[375109412,1753530632631,-460.0,0.00019178,2]
[375109414,1753530632640,-450.0,0.00019178,2]
[375109416,1753530632650,-460.0,0.00019178,2]
[375109418,1753530632664,-283.29263174,0.00019178,2]
[375109420,1753530632673,-460.0,0.00019178,2]
[375109422,1753530632685,-460.0,0.00019178,2]
[375109424,1753530632695,-309.12455338,0.00019178,2]
[375109426,1753530632706,-460.0,0.00019178,2]
[375109428,1753530632715,-388.59109973,0.00019178,2]
[375109430,1753530632725,-460.0,0.00019178,2]
[375109432,1753530632736,-460.0,0.00019178,2]
[375109434,1753530632746,-460.0,0.00019178,2]
[375109436,1753530632755,-460.0,0.00019178,2]
[375109438,1753530632765,-469.92225315,0.00019178,2]
[375109440,1753530632775,-460.0,0.00019178,2]
[375109442,1753530632784,-553.48507504,0.00019178,2]
[375109444,1753530632794,-460.0,0.00019178,2]
[375109446,1753530632803,-460.0,0.00019178,2]
[375109448,1753530632812,-460.0,0.00019178,2]
[375109450,1753530632821,-460.0,0.00019178,2]
[375109452,1753530632831,-605.86973502,0.00019178,2]
[375109454,1753530632841,-460.0,0.00019178,2]
[375109456,1753530632851,-460.0,0.00019178,2]
[375109458,1753530632860,-460.0,0.00019178,2]
[375109460,1753530632870,-196.16560805,0.00019178,2]
[375109462,1753530632879,-460.0,0.00019178,2]
[375109464,1753530632889,-460.0,0.00019178,2]
[375109466,1753530632899,-460.0,0.00019178,2]
[375109468,1753530632908,-460.0,0.00019178,2]
[375109471,1753530632917,-460.0,0.00019178,2]
[375109473,1753530632931,-460.0,0.00019178,2]
[375109475,1753530632941,-460.0,0.00019178,2]
[375109477,1753530632950,-460.0,0.00019178,2]
[375109479,1753530632960,-460.0,0.00019178,2]
[375109482,1753530632969,-460.0,0.00019178,2]
[375109485,1753530632978,-455.0,0.00019178,2]
[375109488,1753530632988,-460.0,0.00019178,2]
[375109490,1753530632998,-460.0,0.00019178,2]
[375109492,1753530633007,-477.28929628,0.00019178,2]
[375109494,1753530633018,-460.0,0.00019178,2]
[375109496,1753530633027,-460.0,0.00019178,2]
[375109498,1753530633036,-157.39,0.00019178,2]
[375109500,1753530633046,-460.0,0.00019178,2]
[375109502,1753530633056,-460.0,0.00019178,2]
[375109504,1753530633066,-460.0,0.00019178,2]
[375109506,1753530633075,-460.0,0.00019178,2]
[375109508,1753530633085,-460.0,0.00019178,2]
[375109510,1753530633095,-460.0,0.00019178,2]
[375109512,1753530633104,-460.0,0.00019178,2]
[375109514,1753530633114,-460.0,0.00019178,2]
[375109516,1753530633123,-460.0,0.00019178,2]
[375109518,1753530633133,-460.0,0.00019178,2]
[375109520,1753530633142,-460.0,0.00019178,2]
[375109522,1753530633151,-460.0,0.00019178,2]
[375109524,1753530633161,-460.0,0.00019178,2]
[375109526,1753530633171,-557.53,0.00019178,2]
[375109528,1753530633181,-460.0,0.00019178,2]
[375109530,1753530633191,-460.0,0.00019178,2]
[375109532,1753530633200,-524.783828,0.00019178,2]
[375109534,1753530633210,-460.0,0.00019178,2]
[375109536,1753530633220,-460.0,0.00019178,2]
[375109538,1753530633230,-460.0,0.00019178,2]
[375109540,1753530633239,-460.0,0.00019178,2]
[375109542,1753530633249,-460.0,0.00019178,2]
[375109544,1753530633259,-460.0,0.00019178,2]
[375109546,1753530633269,-460.0,0.00019178,2]
[375109548,1753530633279,-460.0,0.00019178,2]
[375109550,1753530633289,-460.0,0.00019178,2]
[375109552,1753530633299,-460.0,0.00019178,2]
[375109554,1753530633309,-460.0,0.00019178,2]
[375109556,1753530633320,-477.12709771,0.00019178,2]
[375109558,1753530633329,-460.0,0.00019178,2]
[375109560,1753530633339,-460.0,0.00019178,2]
[375109562,1753530633349,-460.0,0.00019178,2]
[375109564,1753530633359,-460.0,0.00019178,2]
[375109566,1753530633368,-460.0,0.00019178,2]
[375109568,1753530633378,-460.66391108,0.00019178,2]
[375109570,1753530633388,-460.0,0.00019178,2]
[375109572,1753530633398,-460.0,0.00019178,2]
[375109574,1753530633408,-460.0,0.00019178,2]
[375109576,1753530633418,-460.0,0.00019178,2]
[375109578,1753530633427,-460.0,0.00019178,2]
[375109580,1753530633436,-460.0,0.00019178,2]
[375109582,1753530633446,-470.69942342,0.00019178,2]
[375109584,1753530633455,-460.0,0.00019178,2]
[375109586,1753530633465,-460.0,0.00019178,2]
[375109588,1753530633474,-460.0,0.00019178,2]
[375109590,1753530633485,-1144.42,0.00019178,2]
[375109592,1753530633495,-239.59739498,0.00019178,2]
[375109594,1753530633505,-460.0,0.00019178,2]
[375109596,1753530633515,-460.0,0.00019178,2]
[375109598,1753530633524,-460.0,0.00019178,2]
[375109600,1753530633534,-460.0,0.00019178,2]
[375109602,1753530633547,-460.0,0.00019178,2]
[375109604,1753530633557,-460.0,0.00019178,2]
[375109607,1753530633567,-512.51036298,0.00019178,2]
[375109609,1753530633577,-460.0,0.00019178,2]
[375109611,1753530633587,-460.0,0.00019178,2]
[375109613,1753530633597,-460.0,0.00019178,2]
[375109631,1753530633766,-460.0,0.00019178,2]
[375109633,1753530633776,-460.0,0.00019178,2]
[375109635,1753530633786,-407.11710652,0.00019178,2]
[375109637,1753530633797,-537.19383874,0.00019178,2]
[375109639,1753530633807,-460.0,0.00019178,2]
[375109641,1753530633819,-460.0,0.00019178,2]
[375109643,1753530633829,-460.0,0.00019178,2]
[375109645,1753530633839,-460.0,0.00019178,2]
[375109647,1753530633849,-978.93,0.00019178,2]
[375109649,1753530633859,-460.0,0.00019178,2]
[375109651,1753530633868,-460.0,0.00019178,2]
[375109653,1753530633877,-460.0,0.00019178,2]
[375109655,1753530633887,-460.0,0.00019178,2]
[375109657,1753530633896,-460.0,0.00019178,2]
[375109659,1753530633906,-460.0,0.00019178,2]
[375109661,1753530633916,-511.11175927,0.00019178,2]
[375109663,1753530633925,-781.16,0.00019178,2]
[375109665,1753530633935,-460.0,0.00019178,2]
[375109667,1753530633944,-460.0,0.00019178,2]
[375109669,1753530633954,-303.39647819,0.00019178,2]
[375109671,1753530633963,-277.40630608,0.00019178,2]
[375109673,1753530633973,-460.0,0.00019178,2]
[375109675,1753530633982,-583.93,0.00019178,2]
[375109677,1753530633992,-2500.4,0.00019178,2]
[375109679,1753530634002,-500.0,0.00019178,2]
[375109681,1753530634012,-500.0,0.00019178,2]
[375109683,1753530634022,-500.0,0.00019178,2]
[375109685,1753530634032,-500.0,0.00019178,2]
[375109687,1753530634042,-460.0,0.00019178,2]
[375109689,1753530634052,-460.0,0.00019178,2]
[375109691,1753530634062,-460.0,0.00019178,2]
[375109693,1753530634072,-460.0,0.00019178,2]
[375109695,1753530634081,-460.0,0.00019178,2]
[375109697,1753530634091,-809.33,0.00019178,2]
[375109699,1753530634101,-255.98842246,0.00019178,2]
[375109701,1753530634110,-460.0,0.00019178,2]
[375109703,1753530634120,-154.11700291,0.00019178,2]
[375109705,1753530634130,-460.0,0.00019178,2]
[375109707,1753530634139,-460.0,0.00019178,2]
[375109709,1753530634148,-460.0,0.00019178,2]
[375109711,1753530634158,-460.0,0.00019178,2]
[375109713,1753530634168,-249.64793518,0.00019178,2]
[375109715,1753530634177,-460.0,0.00019178,2]
[375109717,1753530634187,-460.0,0.00019178,2]
[375109719,1753530634198,-460.0,0.00019178,2]
[375109720,1753530634209,-460.0,0.00019178,2]
[375109723,1753530634219,-460.0,0.00019178,2]
[375109725,1753530634232,-460.0,0.00019178,2]
[375109727,1753530634241,-460.0,0.00019178,2]
[375109729,1753530634252,-460.0,0.00019178,2]
[375109731,1753530634261,-460.0,0.00019178,2]
[375109733,1753530634271,-460.0,0.00019178,2]
[375109735,1753530634280,-469.1914505,0.00019178,2]
[375109736,1753530634290,-460.0,0.00019178,2]
[375109738,1753530634308,-930.63,0.00019178,2]
[375109740,1753530634318,-460.0,0.00019178,2]
[375109743,1753530634337,-460.0,0.00019178,2]
[375109744,1753530634346,-506.9,0.00019178,2]
[375109746,1753530634356,-460.0,0.00019178,2]
[375109748,1753530634365,-460.0,0.00019178,2]
[375109750,1753530634374,-460.0,0.00019178,2]
[375109752,1753530634383,-460.0,0.00019178,2]
[375109754,1753530634393,-460.0,0.00019178,2]
[375109757,1753530634403,-460.0,0.00019178,2]
[375109758,1753530634413,-330.60084364,0.00019178,2]
[375109762,1753530634432,-460.0,0.00019178,2]
[375109764,1753530634442,-460.0,0.00019178,2]
[375109766,1753530634452,-460.0,0.00019178,2]
[375109768,1753530634462,-460.0,0.00019178,2]
[375109770,1753530634472,-683.82,0.00019178,2]
[375109772,1753530634482,-460.0,0.00019178,2]
[375109774,1753530634491,-460.0,0.00019178,2]
[375109776,1753530634501,-632.42,0.00019178,2]
[375109777,1753530634510,-460.0,0.00019178,2]
[375109778,1753530634521,-460.0,0.00019178,2]
[375109780,1753530634531,-460.0,0.00019178,2]
[375109782,1753530634541,-460.0,0.00019178,2]
[375109784,1753530634551,-460.0,0.00019178,2]
[375109786,1753530634560,-460.0,0.00019178,2]
[375109788,1753530634571,-460.0,0.00019178,2]
[375109790,1753530634581,-460.0,0.00019178,2]
[375109792,1753530634590,-460.0,0.00019178,2]
[375109794,1753530634600,-605.32657621,0.00019178,2]
[375109796,1753530634610,-460.0,0.00019178,2]
[375109798,1753530634620,-278.77781059,0.00019178,2]
[375109800,1753530634630,-2130.97,0.00019178,2]
[375109802,1753530634639,-460.0,0.00019178,2]
[375109804,1753530634649,-460.0,0.00019178,2]
[375109806,1753530634659,-460.0,0.00019178,2]
[375109808,1753530634672,-460.0,0.00019178,2]
[375109810,1753530634682,-500.0,0.00019178,2]
[375109811,1753530634692,-666.0,0.00019178,2]
[375109812,1753530634702,-361.096875,0.00019178,2]
[375109813,1753530634713,-49149.1289467,0.00019178,2]
[375109814,1753530634723,-463.13647076,0.00019451,2]
[375109815,1753530634733,-460.0,0.00019451,2]
[375109816,1753530634743,-460.0,0.00019451,2]
[375109817,1753530634753,-460.0,0.00019451,2]
[375109818,1753530634762,-460.0,0.00019451,2]
[375109819,1753530634772,-460.0,0.00019451,2]
[375109820,1753530634782,-460.0,0.00019451,2]
[375109821,1753530634792,-323.69083466,0.00019451,2]
[375109822,1753530634801,-460.0,0.00019451,2]
[375109823,1753530634811,-460.0,0.00019451,2]
[375109824,1753530634820,-460.0,0.00019451,2]
[375109825,1753530634830,-940.54,0.00019451,2]
[375109826,1753530634840,-460.0,0.00019451,2]
[375109827,1753530634849,-793.55,0.00019451,2]
[375109828,1753530634859,-1000.63,0.00019451,2]
[375109829,1753530634868,-460.0,0.00019452,2]
[375109830,1753530634879,-460.0,0.00019452,2]
[375109831,1753530634888,-460.0,0.00019452,2]
[375109832,1753530634898,-460.0,0.00019452,2]
[375109833,1753530634907,-460.0,0.00019452,2]
[375109834,1753530634917,-460.0,0.00019452,2]
[375109835,1753530634927,-489.07117391,0.00019452,2]
[375109836,1753530634937,-460.0,0.00019452,2]
[375109837,1753530634947,-249.19580051,0.00019452,2]
[375109838,1753530634957,-553.95178946,0.00019452,2]
[375109839,1753530634966,-460.0,0.00019452,2]
[375109841,1753530634976,-460.0,0.00019452,2]
[375109842,1753530634986,-460.0,0.00019452,2]
[375109843,1753530634995,-392.81770239,0.00019452,2]
[375109844,1753530635005,-460.0,0.00019452,2]
[375109846,1753530635014,-460.0,0.00019452,2]
[375109847,1753530635024,-174.31536871,0.00019452,2]
[375109848,1753530635034,-460.0,0.00019452,2]
[375109850,1753530635043,-460.0,0.00019452,2]
[375109851,1753530635053,-460.0,0.00019452,2]
[375109852,1753530635064,-460.0,0.00019452,2]
[375109854,1753530635073,-460.0,0.00019452,2]
[375109855,1753530635083,-408.1429084,0.00019452,2]
[375109856,1753530635093,-460.0,0.00019452,2]
[375109858,1753530635102,-460.0,0.00019452,2]
[375109859,1753530635112,-557.53,0.00019452,2]
[375109861,1753530635122,-460.0,0.00019452,2]
[375109863,1753530635131,-460.0,0.00019452,2]
[375109865,1753530635141,-460.0,0.00019452,2]
[375109867,1753530635151,-460.0,0.00019452,2]
[375109869,1753530635160,-460.0,0.00019452,2]
[375109871,1753530635170,-460.0,0.00019452,2]
[375109873,1753530635179,-460.0,0.00019452,2]
[375109875,1753530635188,-460.0,0.00019452,2]
[375109877,1753530635197,-460.0,0.00019452,2]
[375109879,1753530635207,-460.0,0.00019452,2]
[375109881,1753530635216,-460.0,0.00019452,2]
[375109883,1753530635225,-460.0,0.00019452,2]
[375109885,1753530635235,-460.0,0.00019452,2]
[375109887,1753530635244,-460.0,0.00019452,2]
[375109889,1753530635253,-1144.42,0.00019452,2]
[375109891,1753530635262,-460.0,0.00019452,2]
[375109893,1753530635271,-460.0,0.00019452,2]
[375109895,1753530635280,-460.0,0.00019452,2]
[375109897,1753530635289,-460.0,0.00019452,2]
[375109899,1753530635298,-460.0,0.00019452,2]
[375109901,1753530635307,-460.0,0.00019452,2]
[375109903,1753530635321,-978.93,0.00019452,2]
[375109905,1753530635330,-460.0,0.00019452,2]
[375109907,1753530635340,-781.16,0.00019452,2]
[375109909,1753530635349,-583.93,0.00019452,2]
[375109911,1753530635358,-2500.4,0.00019452,2]
[375109913,1753530635367,-809.33,0.00019452,2]
[375109915,1753530635377,-460.0,0.00019452,2]
[375109917,1753530635386,-460.0,0.00019452,2]
[375109919,1753530635396,-460.0,0.00019452,2]
[375109921,1753530635406,-460.0,0.00019452,2]
[375109923,1753530635415,-460.0,0.00019452,2]
[375109925,1753530635424,-460.0,0.00019452,2]
[375109927,1753530635433,-460.0,0.00019452,2]
[375109929,1753530635443,-460.0,0.00019452,2]
[375109931,1753530635452,-460.0,0.00019452,2]
[375109933,1753530635461,-547.55362094,0.00019452,2]
[375109935,1753530635471,-460.0,0.00019452,2]
[375109937,1753530635480,-460.0,0.00019452,2]
[375109939,1753530635489,-460.0,0.00019452,2]
[375109941,1753530635499,-930.63,0.00019452,2]
[375109943,1753530635508,-460.0,0.00019452,2]
[375109945,1753530635520,-460.0,0.00019452,2]
[375109947,1753530635529,-506.9,0.00019452,2]
[375109949,1753530635542,-489.94,0.00019452,2]
[375109951,1753530635552,-460.0,0.00019452,2]
[375109953,1753530635561,-460.0,0.00019452,2]
[375109955,1753530635571,-460.0,0.00019452,2]
[375109957,1753530635580,-460.0,0.00019452,2]
[375109959,1753530635591,-683.82,0.00019452,2]
[375109961,1753530635600,-460.0,0.00019452,2]
[375109963,1753530635610,-632.42,0.00019452,2]
[375109965,1753530635619,-460.0,0.00019452,2]
[375109967,1753530635629,-460.0,0.00019452,2]
[375109969,1753530635638,-460.0,0.00019452,2]
[375109971,1753530635648,-460.0,0.00019452,2]
[375109973,1753530635658,-460.0,0.00019452,2]
[375109974,1753530635670,-2130.97,0.00019452,2]
[375109975,1753530635679,-460.0,0.00019452,2]
[375109976,1753530635688,-460.0,0.00019452,2]
[375109977,1753530635698,-337.75140144,0.00019473,2]
[375109978,1753530635707,-178.47,0.00019545,2]
[375109979,1753530635717,-353.33361134,0.00019626,2]
[375109980,1753530635727,-609.33349538,0.00019725,2]
[375109981,1753530635738,-460.0,0.00019725,2]
[375109982,1753530635747,-460.0,0.00019725,2]
[375109983,1753530635757,-940.54,0.00019725,2]
[375109984,1753530635768,-460.0,0.00019725,2]
[375109985,1753530635777,-793.55,0.00019725,2]
[375109986,1753530635787,-1000.63,0.00019725,2]
[375109987,1753530635796,-460.0,0.00019726,2]
[375109988,1753530635806,-460.0,0.00019726,2]
[375109989,1753530635815,-343.7694896,0.00019726,2]
[375109990,1753530635825,-460.0,0.00019726,2]
[375109991,1753530635835,-460.0,0.00019726,2]
[375109992,1753530635844,-460.0,0.00019726,2]
[375109993,1753530635854,-460.0,0.00019726,2]
[375109994,1753530635864,-557.53,0.00019726,2]
[375109995,1753530635874,-460.0,0.00019726,2]
[375109996,1753530635885,-460.0,0.00019726,2]
[375109997,1753530635895,-460.0,0.00019726,2]
[375109998,1753530635904,-460.0,0.00019726,2]
[375109999,1753530635913,-460.0,0.00019726,2]
[375110000,1753530635923,-1144.42,0.00019726,2]
[375110001,1753530635933,-460.0,0.00019726,2]
[375110002,1753530635944,-204.33266377,0.00019726,2]
[375110003,1753530635953,-460.0,0.00019726,2]
[375110004,1753530635963,-978.93,0.00019726,2]
[375110005,1753530635973,-781.16,0.00019726,2]
[375110006,1753530635982,-583.93,0.00019726,2]
[375110007,1753530635993,-2500.4,0.00019726,2]
[375110008,1753530636002,-809.33,0.00019726,2]
[375110009,1753530636012,-460.0,0.00019726,2]
[375110010,1753530636021,-460.0,0.00019726,2]
[375110011,1753530636031,-347.98017081,0.00019726,2]
[375110017,1753530638171,-460.0,0.00019178,2]
[375110018,1753530638181,-112.01982919,0.00019726,2]
[375110019,1753530638191,-570.28107445,0.00019726,2]
[375110020,1753530638203,-425.22892999,0.00019726,2]
[375110021,1753530638276,-34.77107001,0.00019726,2]
[375110022,1753530638286,-460.0,0.00019726,2]
[375110023,1753530638295,-460.0,0.00019726,2]
[375110024,1753530638306,-460.0,0.00019726,2]
[375110025,1753530638316,-930.63,0.00019726,2]
[375110026,1753530638326,-460.0,0.00019726,2]
[375110027,1753530638336,-460.0,0.00019726,2]
[375110028,1753530638346,-506.9,0.00019726,2]
[375110029,1753530638355,-460.0,0.00019726,2]
[375110030,1753530638365,-460.0,0.00019726,2]
[375110031,1753530638375,-683.82,0.00019726,2]
[375110032,1753530638384,-460.0,0.00019726,2]